bitfinex/quotes_ETHUSD_20250525
["timestamp","ask_amount","ask_price","bid_price","bid_amount"]
[1748166048100,9.99,2473.9,2473.1,4.947]
[1748166048333,4.035,2473.8,2473.2,0.7788]
[1748166049097,4.035,2473.7,2473.2,0.7788]
[1748166049531,4.035,2473.8,2473.2,0.7788]
[1748166050821,0.55,2473.7,2473.3,4.946]
[1748166051673,0.55,2473.8,2473.3,4.946]
[1748166051871,0.55,2473.5,2473.3,4.946]
[1748166054436,4.034,2473.5,2473.3,4.946]
[1748166055069,0.55,2473.8,2473.3,4.946]
[1748166055275,4.034,2473.7,2473.3,4.946]
[1748166055833,0.55,2473.8,2473.3,4.946]
[1748166056074,4.034,2473.7,2473.3,4.946]
[1748166057695,0.55,2473.6,2473.3,4.946]
[1748166057896,1.3559,2473.3,2472.4,0.8307]
[1748166058180,4.97263435,2473.2,2472.5,4.945]
[1748166058389,4.92208422,2473.2,2472.5,4.945]
[1748166059146,0.55,2473.1,2472.5,4.945]
[1748166059354,0.55,2472.9,2472.5,4.945]
[1748166060833,4.034,2472.8,2472.5,4.945]
[1748166062343,9.99,2473.7,2472.6,0.8307]
[1748166062662,4.034,2473.6,2472.7,0.8307]
[1748166065795,9.99,2473.7,2472.8,8.0]
[1748166066090,4.034,2473.7,2472.9,0.8028]
[1748166066388,4.034,2474.1,2473.0,0.8028]
[1748166066687,4.034,2474.1,2473.1,0.8028]
[1748166066898,4.034,2474.1,2473.4,0.8028]
[1748166067490,4.034,2474.2,2473.4,0.8028]
[1748166068194,4.034,2474.3,2473.4,0.8028]
[1748166069055,2.02983734,2474.5,2473.4,0.8028]
[1748166069258,4.034,2474.4,2473.4,0.8028]
[1748166070118,2.02983734,2474.5,2473.4,0.8028]
[1748166070257,4.034,2474.5,2473.4,0.65238521]
[1748166070459,4.034,2474.6,2473.6,0.8028]
[1748166070657,4.034,2474.6,2473.8,0.8028]
[1748166070916,2.57983734,2475.1,2474.0,0.8028]
[1748166071116,2.40561079,2475.1,2474.0,0.8028]
[1748166072201,2.02983734,2475.1,2474.0,0.8028]
[1748166072362,2.02983734,2475.1,2474.1,4.824]
[1748166073101,2.02983734,2475.1,2474.2,8.0]
[1748166073261,0.55,2474.8,2474.0,0.8028]
[1748166073461,0.55,2474.8,2474.2,8.0]
[1748166073658,2.57983734,2475.1,2474.3,0.8028]
[1748166075005,0.55,2475.1,2474.3,0.8028]
[1748166075175,1.3322,2474.8,2473.8,0.8028]
[1748166075504,0.55,2474.5,2473.9,4.824]
[1748166075706,1.3322,2474.3,2473.9,4.824]
[1748166075900,1.86872,2474.3,2473.9,4.824]
[1748166076204,5.3652,2474.3,2473.9,4.824]
[1748166076877,0.7822,2474.6,2473.9,4.824]
[1748166077065,4.033,2474.5,2474.0,0.8028]
[1748166077401,4.033,2474.7,2474.0,8.8028]
[1748166077603,0.12,2474.9,2474.1,0.8028]
[1748166077828,0.12,2474.9,2474.2,0.8028]
[1748166080891,0.12,2474.9,2474.0,15.52494222]
[1748166080892,0.12,2474.9,2474.7,8.0]
[1748166081101,0.12,2474.9,2474.8,13.5901]
[1748166082013,0.02,2475.9,2474.9,8.0]
[1748166082190,0.02,2475.9,2475.1,8.7671]
[1748166082395,0.02,2475.9,2475.2,0.7671]
[1748166082598,0.02,2475.9,2475.5,0.7671]
[1748166082790,0.02,2475.9,2475.7,8.0]
[1748166083204,0.02,2475.9,2475.8,0.7671]
[1748166083431,2.02983734,2476.4,2475.8,0.7671]
[1748166083633,2.02983734,2476.4,2476.1,0.7671]
[1748166085336,0.12,2476.9,2476.3,0.7815]
[1748166088550,0.12,2476.9,2476.5,8.0]
[1748166088748,0.12,2476.9,2476.4,8.0]
[1748166088908,0.12,2476.9,2476.5,4.821]
[1748166090045,0.12,2476.9,2476.6,0.7556]
[1748166093639,0.12,2476.9,2476.6,1.15995489]
[1748166094213,0.12,2476.9,2476.8,8.0]
[1748166094417,0.12,2476.9,2476.8,4.789]
[1748166096048,0.7504,2476.7,2475.3,9.4962]
[1748166096255,0.7504,2476.7,2475.4,4.788]
[1748166096256,0.55,2476.6,2475.4,4.788]
[1748166096458,0.55,2476.6,2475.5,8.0]
[1748166096761,0.55,2476.6,2475.6,0.7862]
[1748166097640,0.7504,2476.7,2475.6,0.7862]
[1748166098529,0.12,2476.9,2475.6,0.7862]
[1748166099035,0.12,2476.9,2475.7,0.7862]
[1748166099631,0.8279,2476.8,2475.6,0.53520775]
[1748166099836,0.8279,2476.8,2475.7,5.5444]
[1748166101061,0.8279,2476.8,2475.8,8.0]
[1748166101624,0.12,2476.9,2475.9,0.7564]
[1748166103836,0.12,2476.9,2476.1,0.7564]
[1748166105761,0.12,2476.9,2476.2,5.16789497]
[1748166105965,0.12,2476.9,2476.3,4.788]
[1748166106258,0.12,2476.9,2476.4,0.5167895]
[1748166106470,0.12,2476.9,2476.5,0.7564]
[1748166108629,0.12,2476.9,2476.6,0.38103856]
[1748166109559,0.12,2476.9,2476.7,0.38103856]
[1748166109761,0.12,2476.9,2476.8,0.7564]
[1748166109966,0.12,2476.9,2476.8,1.3064]
[1748166110148,0.12,2476.9,2476.8,1.52866463]
[1748166110743,0.12,2476.9,2476.8,10.44491094]
[1748166111329,0.01933088,2476.9,2476.8,10.44491094]
[1748166111535,0.01933088,2476.9,2476.8,11.36506889]
[1748166111744,0.01933088,2476.9,2476.8,12.00608029]
[1748166112880,0.01933088,2476.9,2476.8,11.36506889]
[1748166113770,0.02,2477.9,2477.0,0.0214]
[1748166113974,0.02,2477.9,2477.2,0.0214]
[1748166114133,0.02,2477.9,2477.4,0.55]
[1748166114333,0.02,2477.9,2477.5,1.04440901]
[1748166114572,0.02,2477.9,2477.6,0.0214]
[1748166114740,0.02,2477.9,2477.8,0.55]
[1748166114946,0.02,2477.9,2477.8,6.62230775]
[1748166115276,0.02,2477.9,2477.8,14.34330661]
[1748166117159,0.02,2477.9,2477.8,14.87851436]
[1748166117581,0.02,2477.9,2477.8,23.57651436]
[1748166118093,0.12,2478.9,2477.9,9.28630775]
[1748166118251,0.12,2478.9,2477.9,9.82300901]
[1748166118457,0.12,2478.9,2478.1,8.0]
[1748166119275,0.12,2478.9,2478.2,4.786]
[1748166119479,0.12,2478.9,2478.0,0.50527152]
[1748166119668,0.12,2478.9,2478.1,4.785]
[1748166119874,0.12,2478.9,2478.1,4.98774483]
[1748166120058,0.12,2478.9,2478.2,0.42516805]
[1748166120461,0.12,2478.9,2478.2,0.9603758]
[1748166120663,0.12,2478.9,2478.3,4.788]
[1748166120872,0.12,2478.9,2478.4,4.788]
[1748166121276,0.7996,2478.8,2478.5,4.788]
[1748166121491,0.7996,2478.8,2478.5,5.2668]
[1748166122496,0.7996,2478.8,2478.5,0.4788]
[1748166122800,0.7996,2478.8,2478.6,4.788]
[1748166123580,0.7996,2478.8,2478.7,4.788]
[1748166124408,0.7996,2478.8,2478.1,0.39370267]
[1748166124704,0.7996,2478.8,2478.3,8.0]
[1748166126093,0.7996,2478.8,2477.9,0.20563884]
[1748166126295,0.7996,2478.8,2478.4,4.787]
[1748166126485,0.7996,2478.8,2477.8,8.698]
[1748166126685,0.7996,2478.8,2477.9,4.787]
[1748166127886,0.7996,2478.8,2477.9,4.99078023]
[1748166129505,0.7996,2478.8,2478.0,4.787]
[1748166131015,0.7996,2478.8,2478.2,8.0]
[1748166131309,0.7996,2478.8,2477.9,8.20378023]
[1748166131512,0.55,2478.5,2477.8,8.698]
[1748166131675,0.55,2478.3,2478.0,4.787]
[1748166131874,0.55,2478.1,2478.0,4.787]
[1748166132095,1.3559,2478.1,2478.0,4.787]
[1748166134409,0.756,2477.8,2476.8,0.41095669]
[1748166134584,0.756,2477.8,2477.0,8.0]
[1748166135410,0.756,2477.8,2477.0,8.41062908]
[1748166136718,0.756,2477.8,2477.0,0.41062908]
[1748166137018,0.756,2477.8,2477.1,4.788]
[1748166137201,0.756,2477.8,2477.1,5.2668]
[1748166137579,0.756,2477.8,2477.2,8.696]
[1748166139818,0.756,2477.8,2477.3,4.788]
[1748166140209,0.6004511,2477.7,2477.4,4.788]
[1748166140418,1.338,2477.5,2477.4,4.788]
[1748166140917,1.338,2477.5,2476.8,4.788]
[1748166140918,0.55,2477.1,2476.8,4.788]
[1748166141215,0.55,2476.9,2476.8,4.788]
[1748166141420,1.338,2476.9,2476.8,4.788]
[1748166141663,11.328,2476.9,2476.8,4.788]
[1748166141780,13.21661118,2476.9,2476.8,4.788]
[1748166142617,17.24261118,2476.9,2476.8,4.788]
[1748166143316,0.788,2476.4,2475.0,0.7791]
[1748166143517,0.788,2476.2,2475.1,4.68120775]
[1748166143722,0.788,2476.2,2475.2,8.0]
[1748166144088,0.788,2476.2,2475.2,8.20386505]
[1748166144505,0.788,2476.2,2475.2,0.20386505]
[1748166145925,0.788,2476.2,2475.3,0.40037389]
[1748166146428,0.788,2476.2,2475.2,0.20386505]
[1748166147501,0.788,2476.2,2476.1,13.51]
[1748166148236,0.788,2476.2,2476.1,8.72]
[1748166148422,0.55,2476.2,2476.1,13.51]
[1748166148739,2.3727,2476.2,2476.1,13.51]
[1748166149618,6.4007,2476.2,2476.1,13.51]
[1748166152632,0.7687,2476.2,2476.1,13.51]
[1748166153215,14.019,2476.4,2476.1,13.51]
[1748166154607,7.68750558,2477.3,2476.1,13.51]
[1748166154608,0.8301,2477.6,2476.2,0.7544]
[1748166154834,0.8301,2477.6,2476.4,0.7544]
[1748166155953,0.8301,2477.6,2476.4,1.1472711]
[1748166156249,0.55,2477.7,2476.5,4.762]
[1748166156433,0.55,2477.5,2476.5,4.762]
[1748166157357,0.55,2477.6,2476.6,8.0]
[1748166157659,0.55,2477.2,2476.5,4.762]
[1748166157865,4.029,2477.1,2476.5,5.2382]
[1748166158627,0.55,2477.2,2476.5,5.2382]
[1748166158829,4.028,2477.1,2476.5,4.762]
[1748166159234,0.8301,2476.9,2476.6,4.762]
[1748166159751,4.028,2476.9,2476.6,4.762]
[1748166164186,0.7545,2476.8,2476.7,4.762]
[1748166166071,1.3045,2476.8,2476.7,4.762]
[1748166166938,1.83775,2476.8,2476.7,4.762]
[1748166167160,0.55,2476.7,2476.1,8.72]
[1748166167359,0.7545,2476.6,2476.2,4.762]
[1748166169137,0.55,2476.5,2476.2,4.762]
[1748166169344,4.028,2476.4,2476.2,4.762]
[1748166172757,0.7545,2476.3,2476.1,8.72]
[1748166173144,0.80498221,2476.3,2476.2,4.763]
[1748166173349,0.7545,2476.3,2476.2,4.763]
[1748166173573,4.7835,2476.3,2476.2,4.763]
[1748166175254,4.7835,2476.3,2476.1,8.72]
[1748166175255,0.55,2476.2,2476.1,8.72]
[1748166175599,10.54,2476.2,2476.1,8.72]
[1748166175745,10.54,2476.2,2476.1,13.483]
[1748166176566,14.569,2476.2,2476.1,13.483]
[1748166179194,9.99,2476.2,2476.1,13.483]
[1748166179662,14.019,2476.2,2476.1,13.483]
[1748166180080,9.99,2476.2,2476.1,13.483]
[1748166180455,14.019,2476.2,2476.1,13.483]
[1748166181802,9.99,2476.2,2476.1,13.483]
[1748166181987,14.019,2476.2,2476.1,13.483]
[1748166182154,9.99,2476.2,2476.1,13.483]
[1748166182358,14.019,2476.2,2476.1,13.483]
[1748166183799,0.8217,2476.9,2476.1,13.483]
[1748166183965,4.029,2476.8,2476.1,13.483]
[1748166185482,4.029,2476.7,2476.1,8.72]
[1748166185797,4.029,2476.7,2476.2,4.761]
[1748166186401,4.029,2476.7,2476.3,8.0]
[1748166188397,0.55,2476.6,2476.4,4.761]
[1748166189500,0.37651035,2476.8,2476.4,4.761]
[1748166189856,4.029,2476.7,2476.4,4.761]
[1748166191216,0.8217,2476.9,2476.4,4.761]
[1748166191217,4.029,2476.6,2476.4,4.761]
[1748166191391,8.06746359,2476.5,2476.1,8.72]
[1748166191590,1.3207,2476.2,2476.1,13.481]
[1748166191846,5.7264012,2476.2,2476.1,13.481]
[1748166194425,1.6974012,2476.2,2476.1,13.481]
[1748166194627,5.7264012,2476.2,2476.1,13.481]
[1748166195395,6.29904132,2476.2,2476.1,13.481]
[1748166197423,1.1474012,2476.2,2476.1,13.481]
[1748166197725,5.3497,2476.2,2476.1,13.481]
[1748166200624,1.3207,2476.2,2476.1,13.481]
[1748166200828,5.3497,2476.2,2476.1,13.481]
[1748166201145,1.3207,2476.2,2476.1,13.481]
[1748166201447,4.579,2476.2,2476.1,13.481]
[1748166203431,4.029,2476.2,2476.1,13.481]
[1748166206764,9.99,2476.3,2476.1,13.481]
[1748166206920,4.029,2476.2,2476.1,13.481]
[1748166207862,4.62948207,2476.2,2476.1,13.481]
[1748166208051,6.86774821,2476.2,2476.1,13.481]
[1748166208864,6.86774821,2476.2,2476.1,13.482]
[1748166209271,7.24387429,2476.2,2476.1,13.482]
[1748166212066,7.29436335,2476.2,2476.1,13.482]
[1748166212239,7.24387429,2476.2,2476.1,13.482]
[1748166213652,0.55,2476.1,2475.1,0.9396]
[1748166213846,14.7948829,2476.0,2475.2,4.758]
[1748166214051,14.74438743,2476.0,2475.2,4.758]
[1748166214252,0.55,2475.8,2475.2,4.758]
[1748166214465,4.03,2475.7,2475.2,4.758]
[1748166216144,4.03,2475.6,2475.2,4.758]
[1748166217478,4.03,2475.6,2475.3,8.705]
[1748166219064,4.03,2475.5,2475.3,8.705]
[1748166219468,4.03,2475.4,2475.3,8.705]
[1748166221892,4.03,2475.4,2475.3,12.46457388]
[1748166222577,10.71438743,2476.0,2475.3,12.46457388]
[1748166222736,4.03,2475.9,2475.3,12.46457388]
[1748166224268,10.71438743,2476.0,2475.3,12.46457388]
[1748166224482,4.03,2475.9,2475.3,12.46457388]
[1748166224853,4.03,2475.9,2475.3,8.705]
[1748166225050,9.99,2476.0,2475.5,3.75957388]
[1748166225251,4.03,2475.9,2475.7,3.75957388]
[1748166226578,4.03,2475.9,2475.6,8.7739]
[1748166227739,0.55,2476.3,2475.6,8.7739]
[1748166228053,4.03,2476.2,2475.6,8.7739]
[1748166232264,0.55,2476.1,2475.6,8.7739]
[1748166232461,4.03,2476.2,2475.3,8.705]
[1748166232462,0.55,2475.9,2475.7,4.759]
[1748166232666,4.03,2475.8,2475.7,4.759]
[1748166233365,9.99,2476.4,2475.7,8.51857388]
[1748166233565,0.64274887,2476.5,2476.1,3.75957388]
[1748166233885,4.03,2476.4,2476.2,4.90683127]
[1748166234096,4.03,2476.4,2476.2,4.53087388]
[1748166234655,4.03,2476.4,2476.2,0.7713]
[1748166234897,4.03,2476.4,2475.7,4.759]
[1748166234898,4.03,2476.4,2475.8,11.75957388]
[1748166235198,4.03,2476.4,2475.9,0.8085]
[1748166235394,0.55,2476.3,2475.9,0.8085]
[1748166235594,0.458,2476.2,2476.0,4.759]
[1748166238568,0.458,2476.2,2476.0,13.464]
[1748166240521,4.03,2476.1,2476.0,13.464]
[1748166240672,0.92646643,2476.5,2476.0,13.464]
[1748166240985,4.03,2476.4,2476.1,0.7862]
[1748166241384,4.03,2476.3,2476.1,0.7862]
[1748166241592,4.03,2476.2,2476.1,0.7862]
[1748166241995,12.01983734,2476.7,2476.1,0.7862]
[1748166242205,5.31124373,2476.6,2476.1,0.7862]
[1748166243074,12.01983734,2476.7,2476.4,3.75957388]
[1748166243323,2.02983734,2476.7,2476.5,0.7862]
[1748166243480,4.03,2476.6,2476.5,8.7862]
[1748166244325,6.05983734,2476.7,2476.5,8.7862]
[1748166244622,6.05983734,2476.7,2476.6,3.75957388]
[1748166244825,2.02983734,2476.7,2476.6,4.21415127]
[1748166245226,4.03,2476.8,2476.6,4.21415127]
[1748166245382,4.03,2476.8,2476.7,4.75]
[1748166245578,4.03,2476.8,2476.7,5.5697]
[1748166246017,9.99,2477.1,2476.7,5.5697]
[1748166246201,2.02983734,2477.2,2476.8,4.23543606]
[1748166246403,4.029,2477.0,2476.8,0.47586218]
[1748166246791,4.029,2477.0,2476.9,4.75]
[1748166247422,4.029,2477.0,2476.9,12.75]
[1748166248061,0.55,2476.9,2476.1,5.5697]
[1748166248368,0.7702,2476.5,2476.1,4.75]
[1748166248516,4.62948235,2476.4,2476.1,4.75]
[1748166248721,0.55,2476.2,2476.1,4.75]
[1748166250124,1.14551647,2476.5,2476.1,4.75]
[1748166250331,4.579,2476.4,2476.1,4.75]
[1748166251446,4.029,2476.3,2476.1,4.75]
[1748166251763,0.37531647,2476.7,2476.1,5.5449]
[1748166251966,0.55,2476.6,2476.1,5.5449]
[1748166252260,0.55,2476.9,2476.1,5.5449]
[1748166252424,4.029,2476.8,2476.1,5.5449]
[1748166252620,4.029,2476.8,2476.1,13.06105079]
[1748166254460,4.029,2476.8,2476.3,0.7949]
[1748166255566,0.7713,2477.4,2476.3,0.7949]
[1748166255751,4.029,2477.3,2476.4,8.31105079]
[1748166256268,0.7713,2477.4,2476.4,8.31105079]
[1748166256464,4.029,2477.3,2476.4,8.31105079]
[1748166256637,0.48003,2477.2,2476.4,8.31105079]
[1748166258297,4.029,2477.3,2476.4,8.31105079]
[1748166258662,4.029,2477.3,2476.4,0.7949]
[1748166259644,4.029,2477.3,2476.5,4.749]
[1748166261558,4.029,2477.3,2476.7,0.7949]
[1748166262174,0.55,2477.6,2476.7,0.7949]
[1748166262374,0.55,2477.4,2476.7,0.7949]
[1748166262576,0.3756431,2477.7,2476.7,8.31105079]
[1748166262780,0.3756431,2477.7,2477.3,0.7949]
[1748166263100,0.02,2477.9,2477.4,12.26515079]
[1748166263303,0.02,2477.9,2477.5,0.7949]
[1748166263500,0.02,2477.9,2477.6,8.702]
[1748166263808,0.02,2477.9,2477.7,4.749]
[1748166267200,0.02,2477.9,2477.6,8.702]
[1748166267479,0.02,2477.9,2477.7,4.748]
[1748166270190,0.02,2477.9,2477.8,8.7939]
[1748166271227,0.02,2477.9,2477.8,12.748]
[1748166273708,0.02,2477.9,2477.8,4.748]
[1748166274345,0.02,2477.9,2477.8,4.739]
[1748166274528,2.51051473,2477.9,2477.8,4.739]
[1748166275117,0.02,2477.9,2477.8,4.739]
[1748166276812,0.02,2477.9,2477.6,8.702]
[1748166277163,0.02,2477.9,2477.7,4.739]
[1748166279335,0.02,2477.9,2477.8,4.739]
[1748166279743,0.02,2477.9,2477.6,8.702]
[1748166279941,0.02,2477.9,2477.7,4.739]
[1748166280476,0.02,2477.9,2477.8,4.739]
[1748166281682,0.02,2477.9,2477.8,9.26363884]
[1748166282162,0.02,2477.9,2477.8,5.5107]
[1748166282367,0.02,2477.9,2477.8,9.26363884]
[1748166282934,0.02,2477.9,2477.8,4.52463884]
[1748166283151,0.02,2477.9,2477.8,17.26363884]
[1748166283578,0.02,2477.9,2477.8,12.52463884]
[1748166283875,0.02,2477.9,2477.8,21.01202647]
[1748166284895,0.02,2477.9,2477.8,16.27302647]
[1748166285101,0.02,2477.9,2477.8,21.01102647]
[1748166291803,0.02,2477.9,2477.8,8.7717]
[1748166291977,0.02,2477.9,2477.8,13.5097]
[1748166294007,0.02,2477.9,2477.8,8.7717]
[1748166294189,0.02,2477.9,2477.8,13.5097]
[1748166297546,0.02,2477.9,2477.8,12.738]
[1748166299555,0.02,2477.9,2477.8,21.07092647]
[1748166301113,0.02,2477.9,2477.8,21.27289291]
[1748166302020,4.026,2478.6,2477.9,8.0]
[1748166302334,4.026,2478.6,2478.2,8.0]
[1748166302535,9.99,2478.8,2478.3,0.8316]
[1748166302734,4.026,2478.6,2478.3,0.8316]
[1748166303640,4.026,2478.6,2478.3,4.58194701]
[1748166303799,4.026,2478.6,2478.4,8.0]
[1748166303999,4.026,2478.6,2478.5,4.738]
[1748166304701,0.88,2478.9,2478.5,8.48834701]
[1748166304903,0.12,2478.9,2478.8,3.75034701]
[1748166305102,0.12,2478.9,2478.8,12.90208171]
[1748166307598,0.12,2478.9,2478.8,16.64816126]
[1748166308730,0.7519,2478.8,2478.2,0.47551482]
[1748166308897,0.7519,2478.8,2478.3,4.727]
[1748166309319,0.12,2478.9,2478.4,7.49642656]
[1748166310338,0.12,2478.9,2478.5,0.7995]
[1748166310858,0.12,2478.9,2478.5,8.7995]
[1748166311142,0.12,2478.9,2478.8,8.0]
[1748166312807,0.12,2478.9,2478.8,4.727]
[1748166314559,0.12,2478.9,2478.3,1.20978467]
[1748166314777,0.12,2478.9,2478.4,4.726]
[1748166315098,0.12,2478.9,2478.4,12.22242656]
[1748166315304,0.12,2478.9,2478.8,8.0]
[1748166317448,0.12,2478.9,2478.8,8.7995]
[1748166318007,0.12,2478.9,2478.6,0.7995]
[1748166318208,0.875,2478.9,2478.3,0.88579949]
[1748166318417,0.875,2478.9,2478.4,4.726]
[1748166318616,0.875,2478.9,2478.5,8.0]
[1748166318821,1.3649,2478.9,2478.5,8.0]
[1748166319217,1.3649,2478.9,2478.6,13.419]
[1748166319435,1.3649,2478.9,2478.1,8.29592656]
[1748166319647,1.3649,2478.9,2478.7,8.693]
[1748166319835,0.875,2478.9,2478.7,8.693]
[1748166320040,0.12,2478.9,2478.7,8.693]
[1748166321733,0.12,2478.9,2478.8,0.7995]
[1748166322676,0.12,2478.9,2478.8,8.7995]
[1748166323178,0.12,2478.9,2478.8,13.5255]
[1748166323474,0.755,2479.5,2478.8,13.5255]
[1748166323683,0.755,2479.8,2479.3,8.7995]
[1748166324034,0.755,2479.8,2479.3,8.0]
[1748166325563,0.02,2479.9,2479.3,8.0]
[1748166328079,0.02,2479.9,2479.5,7.49642656]
[1748166328237,0.02,2479.9,2479.6,4.726]
[1748166329671,0.02,2479.9,2479.7,8.0]
[1748166330086,0.02,2479.9,2479.8,16.27092656]
[1748166330585,0.02,2479.9,2479.8,16.67943794]
[1748166331471,0.02,2479.9,2479.8,9.18301138]
[1748166331657,0.02,2479.9,2479.8,13.90801138]
[1748166331858,0.02,2479.9,2479.8,21.40443794]
[1748166336120,2.05108225,2480.8,2479.9,0.775]
[1748166336289,2.05108225,2480.8,2480.5,0.775]
[1748166336494,2.05108225,2480.8,2480.7,8.0]
[1748166338322,2.05108225,2480.8,2480.7,8.19722776]
[1748166338526,2.05108225,2480.8,2480.7,8.0]
[1748166343451,2.05108225,2480.8,2480.7,4.718]
[1748166343766,2.05108225,2480.8,2480.6,8.69]
[1748166343949,2.05108225,2480.8,2480.7,4.718]
[1748166344150,2.05108225,2480.8,2480.7,8.0]
[1748166344363,2.05108225,2480.8,2480.7,12.718]
[1748166345980,2.05108225,2480.8,2480.7,8.0]
[1748166346156,2.05108225,2480.8,2480.7,12.718]
[1748166347482,2.05108225,2480.8,2480.7,12.717]
[1748166352009,2.05108225,2480.8,2480.7,8.0]
[1748166352163,2.05108225,2480.8,2480.7,12.717]
[1748166353540,2.11688312,2481.3,2480.7,12.717]
[1748166353541,2.11688312,2481.3,2480.8,8.0]
[1748166353818,2.11688312,2481.3,2481.1,8.0]
[1748166355103,2.11688312,2481.3,2481.1,8.40216687]
[1748166355277,2.11688312,2481.3,2481.1,0.40216687]
[1748166355480,2.11688312,2481.3,2480.9,8.0]
[1748166355719,2.11688312,2481.3,2480.7,8.0]
[1748166355922,0.7845,2481.2,2481.1,8.0]
[1748166356087,0.7845,2481.2,2480.9,8.0]
[1748166356837,2.11688312,2481.3,2481.1,8.0]
[1748166358114,0.66772778,2481.3,2481.2,12.55742907]
[1748166358798,0.66772778,2481.3,2481.2,17.27442907]
[1748166359009,0.66772778,2481.3,2481.2,12.55742907]
[1748166359217,0.66772778,2481.3,2481.2,17.27442907]
[1748166359584,0.66772778,2481.3,2481.2,12.55742907]
[1748166359921,0.66772778,2481.3,2481.2,17.27342907]
[1748166361322,2.18268398,2481.7,2481.4,0.7712]
[1748166361636,2.18268398,2481.7,2481.6,8.0]
[1748166362199,2.18268398,2481.7,2481.6,12.716]
[1748166362725,2.18268398,2481.7,2481.6,8.0]
[1748166362912,2.18268398,2481.7,2481.6,12.716]
[1748166364644,3.26941238,2481.7,2481.6,4.716]
[1748166364939,3.26941238,2481.7,2480.9,0.47551482]
[1748166365142,0.7881,2481.6,2481.0,4.716]
[1748166365617,0.7881,2481.6,2481.2,8.0]
[1748166365815,0.7881,2481.6,2480.8,7.48028814]
[1748166366044,0.7881,2481.6,2480.9,4.716]
[1748166366045,0.7881,2481.4,2480.9,4.716]
[1748166366257,4.07038112,2481.4,2480.6,8.69]
[1748166366548,0.7881,2481.3,2480.7,4.708]
[1748166366702,0.7881,2481.3,2480.7,12.708]
[1748166367567,0.7881,2481.3,2480.8,4.708]
[1748166367769,0.7881,2481.1,2480.8,4.708]
[1748166370078,0.7881,2481.1,2480.9,4.709]
[1748166371297,4.02,2481.4,2480.9,4.709]
[1748166371579,0.7885,2481.5,2481.0,7.48028814]
[1748166373106,0.7885,2481.5,2480.8,8.0]
[1748166373283,0.7885,2481.5,2480.9,4.709]
[1748166374199,0.7885,2481.5,2480.7,8.0]
[1748166374406,0.7885,2481.5,2480.8,4.709]
[1748166377648,2.18268398,2481.7,2481.0,7.48028814]
[1748166377927,2.18268398,2481.7,2481.3,7.48028814]
[1748166379391,2.13268398,2481.7,2481.3,7.48028814]
[1748166380005,2.13268398,2481.7,2481.4,8.0]
[1748166380191,2.13268398,2481.7,2481.6,8.0]
[1748166381930,0.02,2481.9,2481.6,15.48028814]
[1748166382290,0.02,2481.9,2481.8,8.0]
[1748166382713,0.02,2481.9,2481.8,12.709]
[1748166383031,0.02,2481.9,2481.8,8.0]
[1748166383232,0.02,2481.9,2481.8,12.709]
[1748166383402,0.01,2482.0,2481.8,5.4884]
[1748166383606,0.01,2482.0,2481.9,8.25968814]
[1748166383808,2.24848485,2482.2,2482.0,0.7794]
[1748166384237,2.24848485,2482.2,2482.1,4.708]
[1748166384792,2.24848485,2482.2,2482.1,12.18828814]
[1748166385197,2.31428571,2482.6,2482.1,12.18828814]
[1748166385198,2.31428571,2482.6,2482.2,0.55]
[1748166385422,0.12,2482.9,2482.6,0.751]
[1748166385738,0.12,2482.9,2482.8,8.23128814]
[1748166386037,2.62171527,2483.7,2482.8,12.93928814]
[1748166386213,2.62171527,2483.7,2482.9,0.751]
[1748166386411,2.38008658,2483.0,2482.9,0.751]
[1748166386931,2.38008658,2483.0,2482.9,8.751]
[1748166387140,2.38008658,2483.0,2482.9,17.477]
[1748166387339,2.53168831,2483.9,2483.4,16.23128814]
[1748166387840,2.53168831,2483.9,2483.4,20.93828814]
[1748166391514,2.64329004,2484.8,2483.7,0.55]
[1748166391712,2.70909091,2485.3,2484.7,8.23678814]
[1748166391913,2.70909091,2485.3,2485.0,7.48028814]
[1748166392507,2.70909091,2485.3,2484.8,4.706]
[1748166392508,2.70909091,2485.3,2485.1,4.705]
[1748166392740,2.70909091,2485.3,2485.2,4.705]
[1748166393182,3.53929091,2485.3,2485.2,5.11520079]
[1748166393381,2.70909091,2485.3,2485.2,4.705]
[1748166394187,2.70909091,2485.3,2485.2,8.0]
[1748166394386,2.70909091,2485.3,2485.2,20.18528814]
[1748166394698,2.70909091,2485.3,2485.2,15.48028814]
[1748166394899,2.70909091,2485.3,2485.2,8.40055868]
[1748166395068,2.70909091,2485.3,2485.2,13.10555868]
[1748166395444,2.70909091,2485.3,2485.2,20.58584682]
[1748166396545,2.70909091,2485.3,2485.2,21.40544682]
[1748166396893,2.70909091,2485.3,2485.2,16.70044682]
[1748166397206,2.70909091,2485.3,2485.2,13.10355868]